bitfinex-derivatives/quotes_ETHF0:USTF0_20250101
["timestamp","ask_amount","ask_price","bid_price","bid_amount"]
[1735729367993,0.3013,3325.2,3325.1,0.8744]
[1735729368294,0.30129,3325.4,3325.2,0.3013]
[1735729368689,0.30129,3325.4,3325.3,0.464]
[1735729368890,3.8356288,3325.4,3325.3,0.464]
[1735729369988,0.30129,3325.4,3325.3,0.464]
[1735729372095,2.35366643,3325.5,3325.3,0.464]
[1735729372296,2.35366643,3325.5,3325.4,0.30128]
[1735729372498,2.65493643,3325.5,3325.3,0.464]
[1735729373297,2.65493643,3325.5,3325.3,0.76529]
[1735729373596,0.30127,3325.5,3325.3,0.76529]
[1735729376296,1.38938074,3325.5,3325.3,0.76529]
[1735729377304,0.30129,3325.4,3325.3,0.76529]
[1735729378597,0.30129,3325.4,3325.3,0.464]
[1735729378997,2.35366643,3325.6,3325.3,0.464]
[1735729379197,0.30129,3325.5,3325.4,0.30129]
[1735729379605,0.30128,3325.5,3325.4,0.30129]
[1735729380512,0.30129,3325.4,3325.3,0.464]
[1735729382213,3.44177717,3325.5,3325.3,0.464]
[1735729382413,3.74306717,3325.5,3325.3,0.76529]
[1735729383319,3.44177717,3325.5,3325.3,0.464]
[1735729383517,0.30129,3325.4,3325.3,0.464]
[1735729387013,2.35366643,3325.5,3325.4,0.30129]
[1735729387219,0.25156643,3325.5,3325.4,0.30129]
[1735729387414,2.8335388,3325.7,3325.6,0.30127]
[1735729387614,5.91488136,3326.0,3325.6,4.29591074]
[1735729388020,5.91488136,3326.0,3325.9,0.30124]
[1735729388518,2.94742016,3326.0,3325.9,0.30124]
[1735729388814,4.7061522,3326.7,3325.9,41.45922304]
[1735729389014,4.7061522,3326.7,3326.6,0.30118]
[1735729389415,4.7061522,3326.7,3326.5,0.30118]
[1735729389620,4.7061522,3326.7,3326.6,0.30117]
[1735729389818,5.0073122,3326.7,3326.5,1.38928074]
[1735729390118,1.38926074,3326.8,3326.6,0.30117]
[1735729390320,0.30115,3326.8,3326.6,0.30117]
[1735729390621,0.30115,3326.8,3326.5,0.30117]
[1735729390822,0.30115,3326.8,3326.2,4.3888]
[1735729391121,4.7061522,3327.3,3326.7,3.2078]
[1735729391321,5.1714522,3327.3,3326.7,3.2078]
[1735729391720,5.1714522,3327.3,3327.1,0.30111]
[1735729391922,5.1714522,3327.3,3327.1,0.30112]
[1735729392123,5.1714522,3327.3,3327.2,0.30112]
[1735729392323,0.4653,3327.3,3327.2,0.30112]
[1735729394929,3.2078,3327.5,3327.1,3.2078]
[1735729395123,3.2078,3327.5,3327.4,0.3011]
[1735729397327,0.4521,3327.8,3327.6,0.30108]
[1735729398027,0.4521,3327.8,3327.7,0.30108]
[1735729398328,0.4234,3327.9,3327.8,0.30107]
[1735729398526,0.76353,3328.3,3327.6,1.18]
[1735729398729,0.9051,3328.3,3328.1,0.30103]
[1735729399227,1.20613,3328.3,3328.0,3.50885]
[1735729400926,0.9051,3328.3,3328.0,3.2078]
[1735729401316,0.9051,3328.3,3328.0,3.50885]
[1735729401628,0.9051,3328.3,3328.0,3.2078]
[1735729401825,0.9051,3328.3,3328.1,0.30103]
[1735729402524,0.9051,3328.3,3328.2,0.30103]
[1735729403330,0.4426,3328.3,3328.2,0.30103]
[1735729407937,0.30104,3328.1,3328.0,3.2078]
[1735729409739,0.74633,3328.2,3328.0,3.2078]
[1735729409940,0.4453,3328.2,3328.0,3.2078]
[1735729410131,0.4453,3328.2,3328.1,0.30104]
[1735729410331,0.4453,3328.2,3328.0,3.2078]
[1735729410653,0.4453,3328.2,3328.0,3.50885]
[1735729410832,0.4453,3328.2,3328.1,0.30104]
[1735729412334,0.4453,3328.2,3328.0,3.2078]
[1735729412335,0.4426,3328.3,3328.2,0.30103]
[1735729415533,0.4263,3328.6,3328.5,0.301]
[1735729416035,0.4314,3328.7,3328.6,0.301]
[1735729416743,0.4512,3328.9,3328.8,0.30098]
[1735729418140,0.4512,3328.9,3328.6,0.1522]
[1735729418336,0.30098,3328.8,3328.6,0.45319]
[1735729418534,0.4512,3328.9,3328.6,0.45319]
[1735729418839,0.30099,3328.7,3328.6,0.1522]
[1735729420140,2.29671858,3328.7,3328.0,3.2078]
[1735729420336,0.4512,3328.9,3326.7,4.98937366]
[1735729420337,0.30107,3327.8,3327.5,0.30109]
[1735729420536,0.4552,3327.7,3327.5,0.3011]
[1735729420843,0.8857,3327.7,3327.5,0.3011]
[1735729421044,0.8857,3327.7,3327.6,0.30109]
[1735729422539,0.4552,3327.7,3327.6,0.30109]
[1735729424535,0.4456,3327.9,3327.4,40.8]
[1735729424740,0.4456,3327.9,3327.8,3.50887]
[1735729425136,0.4545,3328.2,3327.8,3.2078]
[1735729425437,0.4545,3328.2,3328.1,0.30104]
[1735729427432,0.75553,3328.2,3328.1,0.30104]
[1735729428948,0.4545,3328.2,3328.1,0.30104]
[1735729438048,0.4545,3328.2,3328.1,3.50884]
[1735729439749,0.4545,3328.2,3328.1,0.30104]
[1735729440057,0.4545,3328.2,3328.1,3.50884]
[1735729440442,0.75553,3328.2,3328.1,3.50884]
[1735729440647,0.30105,3328.0,3327.9,4.68857366]
[1735729441249,3.50885,3328.0,3327.9,2.58767366]
[1735729441453,0.30106,3327.9,3327.8,6.57150961]
[1735729441749,0.30106,3327.9,3327.8,5.87120961]
[1735729442243,5.50451858,3328.0,3327.6,9.47559042]
[1735729442445,2.59779858,3327.7,3327.6,9.47559042]
[1735729442840,0.30114,3327.0,3326.9,9.47559042]
[1735729443038,3.50894,3327.0,3326.9,9.47559042]
[1735729443640,3.2078,3327.0,3326.9,9.77674042]
[1735729444452,3.2078,3327.0,3326.9,0.30115]
[1735729444954,5.0072822,3327.2,3326.9,0.30115]
[1735729445652,0.30113,3327.2,3326.6,40.8]
[1735729445852,0.30113,3327.2,3326.9,0.30115]
[1735729446049,5.1721522,3327.3,3326.6,40.8]
[1735729446350,2.29671858,3326.7,3326.0,4.3918]
[1735729446553,0.30121,3326.2,3326.0,3.2078]
[1735729446856,0.3012,3326.4,3326.1,0.30122]
[1735729447051,0.3012,3326.4,3326.0,3.2078]
[1735729447252,0.30119,3326.5,3326.0,3.50903]
[1735729447456,1.3438,3326.6,3326.0,3.2078]
[1735729447656,0.30123,3326.0,3325.4,1.48528]
[1735729447855,0.30124,3325.9,3325.5,40.8]
[1735729448151,0.30124,3325.9,3325.5,41.10128]
[1735729448359,3.2078,3326.1,3325.5,40.8]
[1735729448360,3.2078,3325.7,3325.5,40.8]
[1735729448555,0.30127,3325.6,3325.4,0.4568]
[1735729448857,3.2078,3325.7,3325.4,0.75808]
[1735729449053,0.30124,3326.0,3325.6,0.30127]
[1735729450252,0.30123,3326.0,3325.5,41.10127]
[1735729450556,0.30125,3325.9,3325.5,40.8]
[1735729451461,0.30125,3325.9,3325.5,41.10128]
[1735729451953,3.50905,3325.9,3325.5,41.10128]
[1735729452550,0.30127,3325.6,3325.5,40.8]
[1735729452756,0.30128,3325.5,3325.1,3.50911]
[1735729453153,0.30129,3325.4,3325.2,40.8]
[1735729453354,0.30128,3325.4,3325.2,40.8]
[1735729453858,3.50908,3325.5,3325.2,40.8]
[1735729454454,3.2078,3325.5,3325.2,40.8]
[1735729454654,0.30129,3325.4,3325.2,40.8]
[1735729454855,0.30129,3325.4,3325.0,0.76712]
[1735729455253,0.30129,3325.4,3325.1,40.8]
[1735729455456,3.2078,3325.5,3325.2,0.3013]
[1735729456155,3.2078,3325.5,3325.1,40.8]
[1735729456355,3.21071858,3325.8,3325.3,0.30129]
[1735729456555,0.76055,3325.8,3325.4,0.4278]
[1735729457162,0.76055,3325.8,3325.4,0.72908]
[1735729457464,0.76055,3325.8,3325.4,0.4278]
[1735729457958,0.30126,3325.7,3325.4,0.4278]
[1735729458652,0.30126,3325.7,3325.3,0.30129]
[1735729459055,0.73176,3325.7,3325.3,0.30129]
[1735729459260,0.4305,3325.7,3325.3,0.30129]
[1735729459463,0.30127,3325.6,3325.3,0.30129]
[1735729459662,0.30127,3325.6,3325.1,40.8]
[1735729459853,0.30127,3325.6,3325.3,0.30129]
[1735729460359,0.4305,3325.7,3325.0,0.4658]
[1735729460561,0.30127,3325.6,3325.3,0.30129]
[1735729461364,0.30129,3325.4,3325.1,0.30131]
[1735729461562,0.30129,3325.4,3325.2,0.3013]
[1735729461964,0.30129,3325.4,3325.1,0.30131]
[1735729462561,0.30129,3325.4,3325.2,0.3013]
[1735729462762,2.29671858,3325.8,3325.0,0.4658]
[1735729462963,0.30126,3325.7,3325.0,0.4658]
[1735729463163,2.29671858,3325.8,3325.4,0.30128]
[1735729463367,0.30126,3325.7,3325.5,0.4503]
[1735729463563,0.30126,3325.7,3325.6,0.4387]
[1735729463967,3.2078,3325.9,3325.6,0.4387]
[1735729464164,3.2078,3325.9,3325.8,0.30125]
[1735729465061,0.30122,3326.2,3326.0,0.30122]
[1735729465267,0.30122,3326.2,3326.1,0.4526]
[1735729465470,0.30121,3326.3,3326.1,0.4526]
[1735729465672,3.2078,3326.4,3326.3,0.3012]
[1735729466073,3.2078,3326.4,3326.2,0.30121]
[1735729466267,3.2078,3326.4,3326.3,0.4387]
[1735729466772,3.2078,3326.4,3326.3,0.7399]
[1735729466968,3.2078,3326.8,3326.3,0.4387]
[1735729467268,3.2078,3326.8,3326.7,0.30117]
[1735729467474,3.2078,3326.8,3326.6,0.30117]
[1735729467673,3.2078,3327.2,3326.3,0.8973]
[1735729467874,3.50892,3327.2,3326.3,0.8973]
[1735729468078,0.30114,3327.1,3326.8,0.30115]
[1735729468373,3.2078,3327.2,3326.9,0.73675]
[1735729468675,3.50893,3327.2,3327.0,0.4239]
[1735729469167,0.30113,3327.1,3327.0,0.4239]
[1735729470469,3.2078,3327.2,3326.9,0.4356]
[1735729470470,0.30114,3327.0,3326.9,0.4356]
[1735729474073,3.50894,3327.0,3326.9,0.4356]
[1735729475775,0.30116,3326.8,3326.5,0.30118]
[1735729475973,0.30116,3326.8,3326.5,0.74788]
[1735729476868,0.30115,3326.9,3326.7,0.30117]
[1735729477177,3.2078,3327.0,3326.5,0.4467]
[1735729477377,0.30116,3326.8,3326.5,0.4467]
[1735729477692,0.30116,3326.8,3326.5,0.74788]
[1735729479072,0.30117,3326.7,3326.5,0.74788]
[1735729479279,3.2078,3327.0,3326.5,0.4467]
[1735729479678,5.50451858,3327.0,3326.5,0.4467]
[1735729479884,0.30116,3326.8,3326.5,0.4467]
[1735729480079,0.30118,3326.7,3326.5,0.4467]
[1735729480279,0.30118,3326.6,3326.5,0.4467]
[1735729480578,0.896,3326.9,3326.5,0.4467]
[1735729480770,0.30116,3326.9,3326.6,0.30117]
[1735729480971,0.30116,3326.8,3326.6,0.30117]
[1735729481978,0.30116,3326.8,3326.5,0.74788]
[1735729482483,0.30116,3326.8,3326.6,0.30118]
[1735729482982,0.30117,3326.7,3326.5,0.74788]
[1735729486880,0.445,3326.9,3326.2,3.2078]
[1735729486881,0.3012,3326.3,3326.2,3.2078]
[1735729487285,0.30119,3326.5,3326.3,0.3012]
[1735729487479,0.30119,3326.5,3326.4,0.4626]
[1735729489678,0.76528,3326.6,3326.4,0.76379]
[1735729490185,0.30118,3326.6,3326.4,0.76379]
[1735729490781,0.30119,3326.5,3326.4,0.76379]
[1735729491180,0.8807,3326.9,3326.2,3.2078]
[1735729491485,0.30121,3326.2,3326.1,0.4357]
[1735729491689,5.50451858,3326.6,3326.1,0.4357]
[1735729492185,0.30121,3326.3,3326.2,0.4395]
[1735729492386,5.50451858,3326.6,3326.2,0.4395]
[1735729492683,0.3012,3326.4,3326.2,0.74071]
[1735729493480,5.50451858,3326.6,3326.2,0.74071]
[1735729493687,0.3012,3326.3,3326.2,0.74071]
[1735729494287,0.3012,3326.4,3326.2,0.74071]
[1735729494683,0.30119,3326.5,3326.3,0.3012]
[1735729496499,3.50898,3326.6,3326.4,0.30119]
[1735729496693,0.30119,3326.5,3326.3,0.3012]
[1735729498299,3.2078,3326.6,3326.2,0.4395]
[1735729498697,3.50898,3326.6,3326.4,0.30119]
[1735729498892,0.30119,3326.5,3326.4,0.30119]
[1735729499997,3.2078,3326.6,3326.4,0.30119]
[1735729500399,3.50898,3326.6,3326.2,0.4395]
[1735729500598,3.50898,3326.6,3326.4,0.30119]
[1735729501101,0.30118,3326.6,3326.4,0.30119]
[1735729502105,3.2078,3326.8,3326.7,0.30117]
[1735729502795,3.52528439,3326.9,3326.8,0.30116]
[1735729504202,3.2078,3327.2,3326.8,0.30116]
[1735729504203,0.30114,3327.0,3326.8,0.30116]
[1735729504502,0.30114,3327.0,3326.5,41.2644]
[1735729504503,3.50893,3327.2,3327.0,0.30113]
[1735729504695,3.50893,3327.2,3327.1,0.9286]
[1735729506595,7.03421439,3327.2,3327.1,0.9286]
[1735729507501,7.03421439,3327.2,3327.1,0.4642]
[1735729507690,3.52528439,3327.2,3327.1,0.76533]
[1735729508495,3.52528439,3327.2,3327.1,0.4642]
[1735729508805,3.82640439,3327.2,3327.1,0.4642]
[1735729509102,3.52528439,3327.2,3326.9,0.4631]
[1735729509294,0.30114,3327.0,3326.9,0.4631]
[1735729509498,3.52528439,3327.2,3326.9,0.76425]
[1735729509699,3.52528439,3327.2,3326.9,0.4631]
[1735729509900,0.30114,3327.0,3326.9,0.4631]
[1735729512503,5.0072922,3327.0,3326.9,0.4631]
[1735729512905,4.7061522,3327.0,3326.9,0.76425]
[1735729513703,3.533514,3327.0,3326.9,0.76425]
[1735729515092,3.533514,3327.1,3326.9,0.4631]
[1735729515298,3.533514,3327.1,3327.0,0.30114]
[1735729515900,2.833214,3327.1,3327.0,3.50894]
[1735729516103,2.833214,3327.1,3327.0,5.80565858]
[1735729516104,2.132814,3327.1,3327.0,5.80565858]
[1735729516307,2.132814,3327.1,3327.0,6.16331883]
[1735729516605,4.7061522,3327.6,3327.5,0.30109]
[1735729517604,3.50887,3327.8,3327.3,1.189]
[1735729517803,3.50887,3327.8,3327.6,0.30108]
[1735729518002,3.50887,3327.8,3327.7,0.30108]
[1735729518199,3.50887,3327.8,3327.3,1.189]
[1735729518404,3.50887,3327.8,3327.6,0.30107]
[1735729519111,3.96048,3327.8,3327.2,0.4364]
[1735729519407,0.30112,3327.1,3327.0,11.92036204]
[1735729520010,0.30112,3327.1,3327.0,10.29686204]
[1735729520411,0.30112,3327.1,3327.0,3.2078]
[1735729520612,0.30112,3327.2,3327.0,3.50894]
[1735729520914,0.30113,3327.1,3327.0,3.2078]
[1735729521609,1.3122,3327.3,3326.7,1.18646]
[1735729521610,0.30115,3326.9,3326.7,1.18646]
[1735729522012,0.4605,3326.8,3326.7,1.18646]
[1735729524112,0.8917,3327.3,3326.7,0.8853]
[1735729524314,1.65332,3327.3,3327.2,0.30112]
[1735729525016,1.22652,3327.3,3327.2,0.30112]
[1735729525217,0.9254,3327.3,3327.2,0.30112]
[1735729525419,4.7061522,3327.4,3327.3,0.30111]
[1735729525615,4.7061522,3327.4,3327.3,0.76761]
[1735729525816,4.7061522,3327.5,3327.4,0.3011]
[1735729527517,0.30109,3327.6,3327.4,0.3011]
[1735729527914,0.30109,3327.6,3327.5,0.30109]
[1735729528317,0.30111,3327.4,3327.2,0.30112]
[1735729528510,0.30112,3327.3,3327.1,3.50893]
[1735729528716,0.30112,3327.3,3327.0,0.4598]
[1735729528717,0.30113,3327.1,3327.0,0.4598]
[1735729528917,0.30113,3327.1,3327.0,0.76094]
[1735729530916,3.2078,3327.1,3326.8,0.441]
[1735729531210,0.30115,3326.9,3326.8,0.441]
[1735729531522,0.30114,3327.0,3326.8,0.74216]
[1735729531717,0.30114,3327.0,3326.9,0.30115]
[1735729532814,2.29671858,3327.7,3327.0,0.30114]
[1735729533019,4.1124,3327.5,3326.7,4.8598]
[1735729533321,0.30111,3327.4,3327.2,0.30111]
[1735729533921,4.1124,3327.5,3326.7,4.8598]
[1735729534124,4.1124,3327.5,3326.7,7.15651858]
[1735729534320,4.1124,3327.5,3327.4,0.3011]
[1735729534626,0.9046,3327.5,3327.4,0.3011]
[1735729535520,0.4387,3327.5,3327.4,0.3011]
[1735729535925,4.7061522,3327.6,3327.2,42.1405]
[1735729536225,4.7061522,3327.6,3327.5,0.30109]
[1735729537123,6.59330992,3327.8,3327.6,0.30108]
[1735729537124,4.7061522,3327.7,3327.6,0.30108]
[1735729538225,5.0072322,3327.7,3327.5,0.30109]
[1735729538420,0.30108,3327.7,3327.5,0.30109]
[1735729539114,5.1546522,3327.8,3327.2,4.0923]
[1735729539317,0.30111,3327.4,3327.2,1.18562]
[1735729539522,0.30112,3327.2,3327.0,1.49413]
[1735729539733,0.453,3327.3,3326.8,5.14935]
[1735729539933,0.30114,3327.0,3326.8,5.14935]
[1735729540126,0.4579,3327.1,3326.8,4.8482]
[1735729540326,0.75903,3327.1,3326.9,0.30115]
[1735729541833,0.4579,3327.1,3326.8,4.8482]
[1735729542031,4.7061522,3327.2,3327.1,0.30113]
[1735729542729,5.1591522,3327.3,3327.2,0.30112]
[1735729542936,5.4602622,3327.3,3327.2,0.30112]
[1735729543528,5.1591522,3327.3,3326.8,4.8482]
[1735729543930,0.75412,3327.3,3327.1,0.30113]
[1735729544626,0.453,3327.3,3326.8,4.8482]
[1735729544827,0.30113,3327.2,3327.0,0.30114]
[1735729546335,0.30114,3327.1,3326.9,0.30115]
[1735729546736,0.30115,3326.9,3326.8,3.2078]
[1735729547229,0.30117,3326.8,3326.5,7.08906204]
[1735729547435,0.30118,3326.6,3326.5,7.08906204]
[1735729548139,0.30117,3326.7,3326.5,7.08906204]
[1735729548332,0.30117,3326.7,3326.4,3.9373]
[1735729548533,0.30117,3326.7,3326.3,0.4519]
[1735729548534,6.84241858,3326.8,3326.3,0.4519]
[1735729548738,0.3012,3326.4,3326.1,7.39028204]
[1735729548939,0.4645,3326.3,3326.2,0.30122]
[1735729550541,0.4645,3326.3,3326.0,3.6361]
[1735729550730,0.4645,3326.3,3326.2,0.30122]
[1735729551137,0.4645,3326.3,3326.1,0.30122]
[1735729552338,0.76571,3326.3,3326.1,0.30122]
[1735729553137,0.76571,3326.3,3326.0,0.4283]
[1735729553343,0.4645,3326.3,3326.1,0.30123]
[1735729553837,0.30124,3326.0,3325.8,3.2078]
[1735729554041,4.0971,3326.2,3325.7,0.75265]
[1735729554340,0.30127,3325.7,3325.5,7.54436204]
[1735729554534,6.39381858,3326.2,3325.5,7.54436204]
[1735729554535,0.4614,3325.6,3325.5,7.39034204]
[1735729555040,0.30124,3326.0,3325.7,0.30126]
[1735729555247,6.39381858,3326.2,3325.3,0.9067]
[1735729555248,0.4382,3326.1,3325.3,0.9067]
[1735729555637,0.4382,3326.1,3325.8,0.30125]
[1735729555839,0.73943,3326.1,3325.8,0.30125]
[1735729556240,0.4382,3326.1,3325.3,0.9067]
[1735729556744,0.30125,3325.9,3325.7,0.30126]
[1735729556943,0.4382,3326.1,3325.3,0.9067]
[1735729557144,0.73943,3326.1,3325.8,0.30125]
[1735729557345,0.73943,3326.1,3325.9,0.4431]
[1735729558341,0.30123,3326.0,3325.9,0.4431]
[1735729560449,0.4382,3326.1,3325.9,0.4431]
[1735729560650,0.30123,3326.0,3325.9,0.4431]
[1735729561846,0.4382,3326.1,3326.0,0.30123]
[1735729562052,0.73943,3326.1,3325.9,1.18364]
[1735729562249,0.4382,3326.1,3325.9,1.18364]
[1735729562643,0.73943,3326.1,3325.9,1.18364]
[1735729563350,0.4382,3326.1,3325.9,0.8824]
[1735729563551,0.30125,3325.9,3325.6,0.30127]
[1735729563752,0.30126,3325.8,3325.6,0.72867]
[1735729564146,0.30126,3325.8,3325.6,0.30127]
[1735729565150,3.2078,3326.0,3325.4,0.4393]
[1735729565452,0.30126,3325.7,3325.5,0.30128]
[1735729565851,0.46,3325.6,3325.5,0.30128]
[1735729566248,0.46,3325.6,3325.4,0.4393]
[1735729566449,0.76128,3325.6,3325.4,0.74059]
[1735729567150,0.76128,3325.6,3325.5,0.30128]
[1735729567758,0.46,3325.6,3325.5,0.30128]
[1735729568151,3.2078,3326.0,3325.4,0.4393]
[1735729568352,0.4403,3325.9,3325.7,0.30126]
[1735729568552,0.74155,3325.9,3325.7,0.30126]
[1735729568751,0.74155,3325.9,3325.8,0.4249]
[1735729569350,0.4403,3325.9,3325.8,0.4249]
[1735729569555,0.30124,3326.0,3325.8,0.72615]
[1735729570051,3.2078,3326.4,3326.3,0.30121]
[1735729570247,3.2078,3326.4,3326.2,0.30121]
[1735729570248,3.509,3326.4,3326.2,0.30121]
[1735729570452,3.509,3326.4,3326.3,0.4654]
[1735729572062,3.2078,3326.4,3326.0,0.4225]
[1735729572265,0.30123,3326.1,3326.0,0.4225]
[1735729572555,0.30123,3326.1,3325.9,1.191]
[1735729572755,0.4456,3326.0,3325.9,1.191]
[1735729572952,0.4456,3326.0,3325.9,1.49224]
[1735729573148,0.30122,3326.2,3326.0,0.30123]
[1735729573362,0.4644,3326.3,3326.0,0.30123]
[1735729573561,0.30122,3326.2,3326.0,0.30123]
[1735729573763,0.4644,3326.3,3325.9,1.191]
[1735729573958,0.30123,3326.1,3325.9,1.49224]
[1735729574263,0.4563,3326.2,3325.9,1.191]
[1735729574558,0.30123,3326.0,3325.9,1.191]
[1735729575258,0.4563,3326.2,3325.9,1.191]
[1735729575259,0.30123,3326.1,3325.9,1.49224]
[1735729575448,0.75752,3326.2,3326.0,0.30123]
[1735729575762,0.30123,3326.1,3326.0,0.30123]
[1735729575964,0.4563,3326.2,3326.0,0.30123]
[1735729575965,0.30122,3326.2,3326.0,0.30123]
[1735729576459,0.30123,3326.1,3326.0,0.30123]
[1735729577758,0.4644,3326.3,3325.9,1.191]
[1735729577961,0.30121,3326.3,3326.2,0.30121]
[1735729579461,0.30119,3326.5,3326.4,0.3012]
[1735729580262,0.4629,3326.7,3326.4,0.3012]
[1735729580462,0.30118,3326.6,3326.4,0.3012]
[1735729580664,0.30118,3326.6,3326.5,0.436]
[1735729582160,0.4629,3326.7,3326.5,0.436]
[1735729582360,3.50897,3326.8,3326.6,0.30118]
[1735729582564,0.30118,3326.6,3326.5,0.436]
[1735729582955,3.2078,3326.8,3326.5,0.436]
[1735729583359,3.50897,3326.8,3326.6,0.30118]
[1735729583666,0.30117,3326.7,3326.5,0.73718]
[1735729585169,0.30118,3326.6,3326.5,0.436]
[1735729586668,0.30118,3326.6,3326.5,0.73719]
[1735729587171,0.30118,3326.7,3326.5,0.73719]
[1735729587359,0.30118,3326.7,3326.5,0.436]
[1735729587565,3.2078,3326.8,3326.7,0.30117]
[1735729589069,3.2078,3326.8,3326.7,41.10117]
[1735729589769,3.51829692,3327.2,3327.1,0.30114]
[1735729590277,3.51829692,3327.2,3326.8,0.4254]
[1735729590472,0.428,3327.2,3327.1,0.30114]
[1735729591061,0.30112,3327.3,3327.1,0.30114]
[1735729591267,3.74133501,3327.4,3327.3,0.30112]
[1735729591571,3.51829692,3327.4,3327.3,0.30112]
[1735729591767,6.72609692,3327.5,3327.4,0.30111]
[1735729591969,6.72609692,3327.5,3327.4,0.72651]
[1735729592674,7.02719692,3327.5,3327.4,0.4254]
[1735729593372,3.5089,3327.5,3327.4,0.4254]
[1735729595370,0.30111,3327.4,3327.3,1.6463]
[1735729595575,0.74211,3327.4,3327.3,1.19]
[1735729595767,1.18771,3327.4,3327.3,1.19]
[1735729597171,4.70600692,3327.4,3327.3,1.19]
[1735729598175,1.18771,3327.4,3327.3,1.19]
[1735729599372,0.30113,3327.1,3327.0,0.76664]
[1735729599575,0.30113,3327.1,3327.0,1.95664]
[1735729601683,1.63939,3327.4,3326.8,0.4525]
[1735729601876,0.30115,3326.9,3326.8,0.4525]
[1735729602380,0.30115,3326.9,3326.8,0.75366]
[1735729605784,3.2078,3327.3,3326.8,0.4525]
[1735729606084,0.30115,3327.0,3326.9,0.30114]
[1735729607787,0.30113,3327.2,3327.1,0.30113]
[1735729608177,3.2078,3327.3,3326.8,0.4525]
[1735729608381,3.50892,3327.3,3327.2,0.30113]
[1735729609786,3.2078,3327.3,3327.2,0.30113]
[1735729610390,0.7481,3327.6,3327.2,0.30113]
[1735729610593,0.7481,3327.6,3327.5,0.3011]
[1735729615592,0.447,3327.6,3327.3,0.8561]
[1735729615883,0.30111,3327.5,3327.4,0.30111]
[1735729619891,0.447,3327.6,3327.3,0.8561]
[1735729620093,0.7481,3327.6,3327.5,0.3011]
[1735729620487,0.447,3327.6,3327.3,0.8561]
[1735729620996,0.74809,3327.6,3327.5,0.3011]
[1735729627092,0.74809,3327.6,3327.3,0.8561]
[1735729627301,0.30111,3327.4,3327.3,0.8561]
[1735729627900,0.30111,3327.5,3327.3,0.8561]
[1735729628096,5.1531522,3327.6,3327.3,0.8561]
[1735729628304,4.7061522,3327.4,3327.3,1.15722]
[1735729629899,4.7061522,3327.5,3327.4,0.30111]
[1735729630299,4.7061522,3327.5,3327.3,0.8561]
[1735729630499,0.72581,3327.4,3327.3,0.8561]
[1735729631800,5.4319622,3327.4,3327.3,0.8561]
[1735729633298,0.72581,3327.4,3327.3,0.8561]
[1735729634508,0.30112,3327.3,3327.2,1.185]
[1735729634709,0.30112,3327.3,3327.2,5.90591348]
[1735729636310,0.30112,3327.3,3327.2,6.20704348]
[1735729636506,3.83539575,3327.3,3327.2,1.48613]
[1735729637401,0.30112,3327.3,3327.2,6.20704348]
[1735729640608,0.30112,3327.3,3327.2,5.02204348]
[1735729640914,0.30112,3327.3,3327.2,5.48604348]
[1735729641114,0.30112,3327.3,3327.2,46.28604348]
[1735729644219,3.95897575,3327.4,3327.2,45.98491348]
[1735729644419,4.26008575,3327.4,3327.3,0.30112]
[1735729644718,3.95897575,3327.4,3327.3,0.30112]
[1735729645021,3.53427575,3327.4,3327.3,41.10112]
[1735729645922,3.53427575,3327.4,3327.3,42.18788826]
[1735729646811,2.45571099,3327.6,3327.5,0.3011]
[1735729647008,3.53581782,3327.6,3327.5,1.74361106]
[1735729647207,3.53581782,3327.6,3327.5,6.74361106]
[1735729647417,3.38461782,3327.6,3327.5,47.18786826]
[1735729648214,1.95021782,3327.6,3327.5,48.39499511]
[1735729648716,1.19732,3328.5,3328.4,0.30102]
[1735729648912,1.19732,3328.5,3328.4,1.48602]
[1735729649114,1.19732,3328.5,3328.4,1.185]
[1735729649313,1.19732,3328.5,3328.4,0.4849]
[1735729651420,1.19732,3328.5,3328.4,0.78592]
[1735729651718,0.8963,3328.5,3328.4,0.78592]
[1735729652109,1.19731,3328.5,3328.4,0.78592]
[1735729654311,0.8963,3328.5,3328.4,0.78592]
[1735729654918,0.4455,3328.5,3328.4,0.78592]
[1735729655817,0.4364,3328.8,3328.4,0.4849]
[1735729656021,0.8868,3328.8,3328.4,0.4849]
[1735729656324,0.8868,3328.8,3328.7,0.301]
[1735729656819,3.2078,3329.2,3328.4,1.23746]
[1735729656820,3.2078,3329.2,3329.1,0.30096]
[1735729657021,3.6582,3329.2,3329.1,1.48596]
[1735729658323,3.2078,3329.2,3329.1,1.48596]
[1735729659716,3.2078,3329.2,3329.1,42.28596]
[1735729659915,0.911,3329.5,3329.1,45.1928]
[1735729660114,0.911,3329.5,3329.4,0.30093]
[1735729660418,0.75131,3329.7,3329.2,2.29389511]
[1735729660419,0.4504,3329.7,3329.6,0.30091]
[1735729661123,0.8779,3329.9,3329.8,0.3009]
[1735729661324,1.3067,3329.9,3329.8,1.4859]
[1735729662520,3.2078,3330.5,3329.8,3.47889511]
[1735729662727,0.30085,3330.3,3329.8,3.47889511]
[1735729663319,1.3082,3330.4,3329.8,3.47889511]
[1735729663520,1.60905,3330.4,3330.3,0.30085]
[1735729664420,1.3082,3330.4,3330.3,0.30085]
[1735729665724,3.5086,3330.9,3330.7,0.30081]
[1735729665924,1.3318,3330.8,3330.7,0.30081]
[1735729666325,1.3318,3330.8,3330.7,41.10081]
[1735729667725,1.63261,3330.8,3330.7,40.8]
[1735729667927,1.63261,3330.8,3330.6,1.48582]
[1735729669330,0.30082,3330.7,3330.6,1.185]
[1735729670827,1.3318,3330.8,3330.4,0.30084]